[Event "XVI Memorial Ezequiel Martin 2024"]
[Site "Mollet"]
[Date "2024.06.09"]
[Round "3.5"]
[White "Valenzuela Gomez, Fernando"]
[Black "Rahal, Michael A"]
[Result "1/2-1/2"]
[ECO "C02"]
[WhiteElo "2358"]
[BlackElo "2302"]
[Annotator "RC"]
[PlyCount "150"]
[EventDate "2024.06.01"]
[EventType "swiss"]
[EventCountry "ESP"]
[SourceTitle "playchess.com"]
[Source "ChessBase"]
[SourceQuality "1"]
[TimeControl "900+5"]

1. e4 {[%emt 0:00:04]} e6 {[%emt 0:00:03]} 2. d4 {[%emt 0:00:02]} d5 3. e5 c5 {[%emt 0:00:03]} 4. c3 {[%emt 0:00:01]} Nc6 {[%emt 0:00:01]} 5. Nf3 {[%emt 0:00:01]} Nge7 {[%emt 0:00:00]} 6. Na3 {[%emt 0:00:02]} cxd4 {[%emt 0:00:05]} 7. cxd4 {[%emt 0:00:01]} Nf5 {[%emt 0:00:01]} 8. Nc2 {[%emt 0:00:02]} Qa5+ {[%emt 0:00:02]} 9. Bd2 {[%emt 0:00:10]} Qb6 {[%emt 0:00:01]} 10. Bc3 {[%emt 0:00:21]} Be7 {[%emt 0:00:01]} 11. Bd3 {[%emt 0:00:38]} a5 {[%emt 0:00:03]} 12. O-O {[%emt 0:03:59]} O-O {[%emt 0:00:03]} 13. h3 {[%emt 0:02:07]} Bd7 {[%emt 0:01:06]} 14. Kh1 {[%emt 0:00:08]} f6 {[%emt 0:00:28]} 15. exf6 {[%emt 0:00:40]} Bxf6 {[%emt 0:00:41]} 16. Qd2 {[%emt 0:00:42]} Be7 {[%emt 0:01:09]} 17. a3 {[%emt 0:00:31]} a4 {[%emt 0:00:11]} 18. Rae1 {[%emt 0:00:07]} Bd6 {[%emt 0:00:13]} 19. Ng5 {[%emt 0:00:48]} Rae8 {[%emt 0:00:40]} 20. g4 {[%emt 0:00:11]} Nh4 {[%emt 0:03:13]} 21. Bxh7+ {[%emt 0:06:15]} Kh8 22. f4 {[%emt 0:00:00]} Be7 {[%emt 0:00:59]} 23. Bd3 {[%emt 0:00:00]} Bxg5 {[%emt 0:00:01]} 24. fxg5 {[%emt 0:00:00]} e5 {[%emt 0:01:41]} 25. Qe3 {[%emt 0:00:00]} e4 {[%emt 0:01:20]} 26. Rxf8+ {[%emt 0:00:00]} Rxf8 {[%emt 0:00:03]} 27. Rf1 {[%emt 0:00:00]} Qd8 {[%emt 0:01:06]} 28. Rxf8+ {[%emt 0:00:00]} Qxf8 {[%emt 0:00:01]} 29. Be2 {[%emt 0:00:00]} Qf7 {[%emt 0:00:27]} 30. Ne1 {[%emt 0:00:00]} Ne7 {[%emt 0:00:08]} 31. Kg1 {[%emt 0:00:00]} Neg6 {[%emt 0:00:03]} 32. Bd2 {[%emt 0:00:00]} Kh7 {[%emt 0:00:11]} 33. Qf2 {[%emt 0:00:00]} Qe8 {[%emt 0:01:12]} 34. Be3 {[%emt 0:00:00]} Bb5 {[%emt 0:00:06]} 35. Bd1 {[%emt 0:00:12]} Bc4 {[%emt 0:00:14]} 36. Ng2 {[%emt 0:00:17]} Nf3+ {[%emt 0:01:07]} 37. Bxf3 {[%emt 0:00:03]} exf3 {[%emt 0:00:01]} 38. Qxf3 {[%emt 0:00:01]} Qb5 {[%emt 0:00:13]} 39. h4 {[%emt 0:00:57]} Be2 {[%emt 0:00:15]} 40. Qg3 {[%emt 0:00:00]} Qxb2 {[%emt 0:00:19]} 41. h5 {[%emt 0:00:00]} Nf8 {[%emt 0:00:03]} 42. g6+ {[%emt 0:00:15]} Kg8 43. Qf2 {[%emt 0:00:00]} Qb1+ {[%emt 0:00:15]} 44. Kh2 {[%emt 0:00:00]} Qf1 {[%emt 0:00:03]} 45. Nf4 {[%emt 0:00:00]} Qxf2+ {[%emt 0:00:19]} 46. Bxf2 {[%emt 0:00:00]} Bxg4 {[%emt 0:00:10]} 47. Kg3 {[%emt 0:00:00]} Bd1 {[%emt 0:00:17]} 48. Kh4 {[%emt 0:00:00]} Bb3 {[%emt 0:00:16]} 49. Be1 {[%emt 0:00:11]} Nd7 {[%emt 0:00:04]} 50. Kg5 {[%emt 0:00:03]} Nf6 {[%emt 0:00:08]} 51. Bb4 {[%emt 0:00:11]} Ne4+ {[%emt 0:00:02]} 52. Kf5 {[%emt 0:00:02]} Ng3+ {[%emt 0:00:02]} 53. Ke5 {[%emt 0:00:04]} b5 {[%emt 0:00:06]} 54. Nxd5 {[%emt 0:00:10]} Nxh5 {[%emt 0:00:19]} 55. Ne7+ {[%emt 0:00:02]} Kf8 {[%emt 0:00:00]} 56. d5 {[%emt 0:00:06]} Ke8 {[%emt 0:00:00]} 57. Nf5 {[%emt 0:00:05]} Kd7 {[%emt 0:00:04]} 58. Bf8 {[%emt 0:00:06]} Nf6 {[%emt 0:00:06]} 59. Bxg7 {[%emt 0:00:07]} Nxd5 {[%emt 0:00:02]} 60. Bf8 {[%emt 0:00:04]} Nc7 {[%emt 0:00:18]} 61. g7 {[%emt 0:00:05]} Ne8 {[%emt 0:00:05]} 62. Nh6 {[%emt 0:00:24]} Nxg7 63. Bxg7 {[%emt 0:00:00]} Kc6 {[%emt 0:00:10]} 64. Kd4 {[%emt 0:00:00]} Be6 {[%emt 0:00:00]} 65. Ke5 {[%emt 0:00:00]} Bb3 {[%emt 0:00:00]} 66. Bf8 {[%emt 0:00:00]} Bc4 {[%emt 0:00:06]} 67. Nf5 {[%emt 0:00:00]} Bf1 {[%emt 0:00:06]} 68. Nd4+ {[%emt 0:00:00]} Kb6 {[%emt 0:00:05]} 69. Bb4 {[%emt 0:00:35]} Ka6 70. Kd6 {[%emt 0:00:00]} Bd3 {[%emt 0:00:03]} 71. Kc6 {[%emt 0:00:00]} Bf1 {[%emt 0:00:05]} 72. Kc5 {[%emt 0:00:00]} Bd3 {[%emt 0:00:01]} 73. Ne6 {[%emt 0:00:00]} Bf1 {[%emt 0:00:03]} 74. Nc7+ {[%emt 0:00:00]} Kb7 75. Nxb5 Bxb5 {[%emt 0:00:15]} 1/2-1/2

[Event "XVI Memorial Ezequiel Martin 2024"]
[Site "Mollet"]
[Date "2024.06.09"]
[Round "3.6"]
[White "Fernandez Aguilar, Francisco"]
[Black "Lazaro Pujol, Abel"]
[Result "0-1"]
[ECO "E04"]
[WhiteElo "2054"]
[BlackElo "2356"]
[Annotator "RC"]
[PlyCount "74"]
[EventDate "2024.06.01"]
[EventType "swiss"]
[EventCountry "ESP"]
[SourceTitle "playchess.com"]
[Source "ChessBase"]
[SourceQuality "1"]
[TimeControl "900+5"]

1. Nf3 {[%emt 0:00:03]} d5 {[%emt 0:00:18]} 2. d4 {[%emt 0:00:02]} Nf6 {[%emt 0:00:23]} 3. c4 {[%emt 0:00:02]} e6 {[%emt 0:00:01]} 4. g3 {[%emt 0:00:01]} dxc4 {[%emt 0:00:31]} 5. Bg2 {[%emt 0:00:02]} Nc6 {[%emt 0:00:02]} 6. Qa4 {[%emt 0:00:11]} Bb4+ {[%emt 0:00:01]} 7. Bd2 {[%emt 0:00:02]} Nd5 {[%emt 0:00:02]} 8. Bxb4 {[%emt 0:00:54]} Ndxb4 {[%emt 0:00:02]} 9. Nc3 {[%emt 0:00:12]} Rb8 {[%emt 0:03:30]} 10. Ne5 {[%emt 0:01:08]} O-O {[%emt 0:00:21]} 11. Nxc6 {[%emt 0:00:41]} Nxc6 {[%emt 0:01:04]} 12. Bxc6 {[%emt 0:00:42]} bxc6 {[%emt 0:00:02]} 13. Qxc4 {[%emt 0:00:01]} Qd6 {[%emt 0:09:53]} 14. O-O-O {[%emt 0:05:05]} Rb4 {[%emt 0:00:00]} 15. Qd3 {[%emt 0:01:16]} c5 {[%emt 0:00:00]} 16. dxc5 {[%emt 0:00:59]} Qxc5 {[%emt 0:00:00]} 17. Qe3 {[%emt 0:00:39]} Qxe3+ {[%emt 0:00:00]} 18. fxe3 {[%emt 0:00:01]} h5 {[%emt 0:00:00]} 19. Rd4 {[%emt 0:00:10]} c5 {[%emt 0:00:00]} 20. Rf4 {[%emt 0:00:49]} g5 {[%emt 0:00:00]} 21. Rxb4 {[%emt 0:02:08]} cxb4 {[%emt 0:00:40]} 22. Ne4 Bb7 {[%emt 0:00:00]} 23. Nf6+ {[%emt 0:00:08]} Kg7 {[%emt 0:00:00]} 24. Rf1 {[%emt 0:01:49]} Kg6 {[%emt 0:00:00]} 25. Nd7 {[%emt 0:00:00]} Rc8+ {[%emt 0:00:00]} 26. Kb1 {[%emt 0:00:00]} Be4+ {[%emt 0:00:25]} 27. Ka1 f5 {[%emt 0:00:00]} 28. Ne5+ {[%emt 0:00:00]} Kf6 {[%emt 0:00:00]} 29. Nd3 {[%emt 0:00:00]} Bxd3 {[%emt 0:00:00]} 30. exd3 {[%emt 0:00:00]} Rc2 {[%emt 0:00:00]} 31. h4 {[%emt 0:00:14]} Rg2 {[%emt 0:00:00]} 32. Kb1 {[%emt 0:00:07]} Rxg3 {[%emt 0:00:04]} 33. hxg5+ Kxg5 34. Rf4 {[%emt 0:00:13]} h4 {[%emt 0:00:09]} 35. Rxb4 {[%emt 0:00:03]} h3 {[%emt 0:00:05]} 36. Rb7 {[%emt 0:00:05]} Rg1+ {[%emt 0:00:03]} 37. Kc2 {[%emt 0:00:01]} h2 {[%emt 0:00:01]} 0-1

[Event "XVI Memorial Ezequiel Martin 2024"]
[Site "Mollet"]
[Date "2024.06.09"]
[Round "4.1"]
[White "Villa Tornero, Alex"]
[Black "Diaz Camallonga, Carles"]
[Result "1/2-1/2"]
[ECO "C01"]
[WhiteElo "2321"]
[BlackElo "2478"]
[Annotator "TA"]
[PlyCount "68"]
[EventDate "2024.06.01"]
[EventType "swiss"]
[EventCountry "ESP"]
[SourceTitle "playchess.com"]
[Source "ChessBase"]
[SourceQuality "1"]
[TimeControl "900+5"]

{[%evp 9,68,-3,0,2,0,0,0,-16,6,-45,-37,-38,-52,-45,-54,-45,-44,-43,-41,-41,-44,-65,-41,-56,-54,-52,-47,-46,-35,-58,-53,-64,-35,-82,-82,-80,-79,-79,-37,-23,-32,-25,-12,-10,0,0,0,0,0,0,0,0,0,0,0,0,0,0,0,0,0]} 1. e4 {[%emt 0:00:03]} e6 {[%emt 0:00:01]} 2. d4 {[%emt 0:00:05]} d5 {[%emt 0:15:14]} 3. Bd3 {[%emt 0:00:05][%cal Bf1d3,Bd3e4,Be4f3][%mdl 32]} dxe4 {[%emt 0:00:00]} 4. Bxe4 {[%emt 0:00:02]} Nf6 {[%emt 0:00:00]} 5. Bf3 {[%emt 0:00:01]} Nbd7 {[%emt 0:00:00]} 6. Ne2 {[%emt 0:00:03]} Bd6 {[%emt 0:00:00]} 7. O-O {[%emt 0:00:06]} O-O {[%emt 0:00:25]} 8. Bg5 {[%emt 0:15:20]} h6 {[%emt 0:00:05]} 9. Bf4 {[%emt 0:00:05]} (9. Bxf6 $11 Nxf6 10. Nd2) 9... e5 $15 {[%emt 0:00:05]} 10. dxe5 {[%emt 0:00:00]} Nxe5 {[%emt 0:00:05]} 11. Bxe5 {[%emt 0:00:00]} Bxe5 {[%emt 0:00:00]} 12. c3 {[%emt 0:00:00]} c6 {[%emt 0:00:10]} 13. Nd2 {[%emt 0:00:20]} Be6 {[%emt 0:00:05]} 14. Qc2 {[%emt 0:00:00]} Qc7 15. h3 {[%emt 0:00:10]} Rad8 {[%emt 0:00:10][%cal Oe6f5]} 16. Rad1 {[%emt 0:00:05]} Rfe8 {[%emt 0:00:05]} (16... Bxa2 $2 17. b3 $18) 17. Rfe1 {[%emt 0:00:05]} Qb6 {[%emt 0:00:05]} (17... Bxa2 $2 18. b3 $18) 18. Nb3 {[%emt 0:00:05]} g6 {[%emt 0:00:05]} 19. Ned4 {[%emt 0:00:05]} Bc8 {[%emt 0:00:05]} 20. a4 {[%emt 0:00:05]} a5 {[%emt 0:00:05]} 21. Nd2 {[%emt 0:00:05]} (21. Re2 $15 {is more appropriate.}) 21... Bxd4 $17 {[%emt 0:00:05]} 22. Rxe8+ {[%emt 0:00:05]} Nxe8 {[%emt 0:00:05]} (22... Rxe8 23. Nc4 Bxf2+ 24. Qxf2 $11) 23. cxd4 {[%emt 0:00:05]} Bf5 {[%emt 0:00:05]} ({Much worse is} 23... Rxd4 24. Nc4 Qc5 (24... Rxd1+ 25. Qxd1 Qb4 26. Qd8 $11) 25. Rxd4 Qxd4 26. Qe4 (26. Nxa5 Nd6 $17) 26... Qxe4 27. Bxe4 $14) (23... Be6 $5 24. Nc4 Qb4 $17 (24... Bxc4 25. Qxc4 Qxb2 26. d5 $17)) 24. Qc3 {[%emt 0:00:05]} Qxd4 {[%emt 0:00:05]} 25. Qxa5 {[%emt 0:00:05][%cal Od2c4] [#] Nc4! would now be deadly.} b6 {[%emt 0:00:05]} 26. Qc3 {[%emt 0:00:05] The position is equal.} Qxc3 {[%emt 0:00:00]} (26... Qxa4 {with more complications.} 27. b3 Qd4 28. Qxc6 Qc5) 27. bxc3 {[%emt 0:00:00][%cal Od2c4]} Bc2 {[%emt 0:00:00][%csl LRa4,LRd1]} 28. Re1 {[%emt 0:00:10]} Bxa4 {[%emt 0:00:15]} 29. Nc4 {[%emt 0:00:05]} Rb8 {[%emt 0:00:05]} 30. Nxb6 {[%emt 0:00:00]} Rxb6 {[%emt 0:00:00]} 31. Rxe8+ {[%emt 0:00:00]} Kg7 {[%emt 0:00:00]} 32. Ra8 {[%emt 0:00:15]} Bb3 {[%emt 0:00:15]} 33. Rc8 {[%emt 0:00:00]} Bd5 {[%emt 0:00:00]} 34. Bxd5 {[%emt 0:00:00]} cxd5 {[%emt 0:00:00] Weighted Error Value: White=0.08 (flawless) /Black=0.07 (flawless) .  Mistake:       	White=2     	---        Inaccurate:     	---       	Black=2      OK:         	White=15    	Black=11     Best:        	White=2     	---} 1/2-1/2

[Event "XVI Memorial Ezequiel Martin 2024"]
[Site "Mollet"]
[Date "2024.06.09"]
[Round "4.2"]
[White "Ayats Llobera, Gerard"]
[Black "Cruz, Filemon"]
[Result "0-1"]
[ECO "C41"]
[WhiteElo "2466"]
[BlackElo "2247"]
[Annotator "TA"]
[PlyCount "82"]
[EventDate "2024.06.01"]
[EventType "swiss"]
[EventCountry "ESP"]
[SourceTitle "playchess.com"]
[Source "ChessBase"]
[SourceQuality "1"]
[TimeControl "900+5"]

{[%evp 18,82,50,39,50,11,17,18,24,-12,-11,-25,52,-76,-70,-58,-89,-115,-85,-76,-93,-95,-17,-37,-31,-25,-45,-25,-37,-25,-25,-44,-22,-160,-156,-175,-164,-183,-179,-403,-378,-400,-395,-386,-376,-384,-376,-380,-383,-398,-388,-454,-466,-445,-427,-426,-428,-569,-416,-706,-701,-755,-749,-754,-750,-718,-639]} 1. e4 {[%emt 0:00:01]} d6 {[%emt 0:00:11]} 2. d4 {[%emt 0:00:01]} Nf6 {[%emt 0:00:01]} 3. Nc3 {[%emt 0:00:01]} e5 {[%emt 0:00:01]} 4. Nf3 {[%emt 0:00:05]} Nbd7 {[%emt 0:00:02]} 5. Bc4 {[%emt 0:00:00]} Be7 {[%emt 0:00:01]} 6. O-O {[%emt 0:00:02]} O-O {[%emt 0:00:02]} 7. Re1 {[%emt 0:00:01]} c6 {[%emt 0:00:01]} 8. a4 {[%emt 0:00:01]} a5 {[%emt 0:00:01]} 9. Ba2 {[%emt 0:00:06]} Qc7 {[%emt 0:00:02]} 10. h3 {[%emt 0:00:01]} Nb8 {[%emt 0:00:39][%cal Bd7b8,Bb8a6,Ba6b4][%mdl 32]} 11. dxe5 {[%emt 0:00:13]} dxe5 {[%emt 0:00:02]} 12. Nh4 {[%emt 0:00:01]} Na6 {[%emt 0:00:05] The position is equal.} 13. Qf3 {[%emt 0:00:04]} Nb4 {[%emt 0:00:02]} 14. Bb3 {[%emt 0:00:02]} Be6 {[%emt 0:00:03]} ({Better is} 14... Nd7 $11 15. Nf5 Nc5) 15. Re2 {[%emt 0:00:40]} (15. Bxe6 $14 {stays ahead.} Nxc2 (15... fxe6 16. Qe2 $14) 16. Ba2) 15... Bxb3 $17 {[%emt 0:00:35]} 16. cxb3 {[%emt 0:00:04]} g6 {[%emt 0:00:13]} 17. Bg5 {[%emt 0:00:12]} Nh5 {[%emt 0:00:10][%cal Bf6h5,Bh5f4,Bf4e6,Be6c5][%mdl 32]} 18. Bxe7 {[%emt 0:00:51]} Qxe7 {[%emt 0:00:02]} 19. Nf5 {[%emt 0:00:01]} Qf6 {[%emt 0:00:29]} (19... Qg5 $17 20. Qg4 Qxg4 21. Nh6+ Kg7 22. Nxg4 Rfd8) 20. Rd2 $11 {[%emt 0:00:12]} Rfd8 {[%emt 0:00:14] Wards off Rd6} 21. Rad1 {[%emt 0:00:01]} Rxd2 {[%emt 0:01:14]} 22. Rxd2 {[%emt 0:00:01][%cal Od2d7]} Nf4 {[%emt 0:00:05]} 23. Rd6 {[%emt 0:00:49]} Ne6 $36 {[%emt 0:00:03][%cal Og8f8][%mdl 2048] Black has some pressure.} 24. Nh6+ $1 {[%emt 0:00:36]} Kg7 {[%emt 0:00:02] aiming for ...Qxf3.} 25. Qxf6+ {[%emt 0:00:01] Black keeps a firm grip on the game.} (25. Ng4 $1 $11 Qf4 (25... Qxf3 26. gxf3 Na6 27. Nxe5 $15) 26. Qd1) 25... Kxf6 $17 {[%emt 0:00:01]} 26. Rd7 {[%emt 0:00:03] [#]} Kg7 {[%emt 0:00:37]} 27. Ng4 {[%emt 0:05:25]} (27. Rxf7+ Kxh6 28. Rxb7 Rd8 $19) (27. Nxf7 $2 Nc5 28. Nxe5+ Nxd7 29. Nxd7 Nd3 $19) 27... Nc5 $1 {[%emt 0:00:07][%csl LRb3,LRd7]} 28. Re7 {[%emt 0:00:02]} (28. Rd1 Nbd3 (28... Nxb3 29. Nxe5 Nc5 30. Rd2 $11) 29. Ne3) 28... h5 $19 {[%emt 0:00:10]} (28... Nxb3 29. Rxb7 (29. Nxe5 $2 Kf6 $19) 29... Nc5 30. Re7 $11) 29. Nxe5 {[%emt 0:01:49]} Kf6 {[%emt 0:00:02]} (29... Nxb3 $2 30. Rxf7+ (30. Nxf7 Kf8 $15) 30... Kh6 31. f4 $18 (31. Rxb7 Nc5 $18)) 30. Rxf7+ {[%emt 0:00:50]} Kxe5 {[%emt 0:00:02]} 31. f4+ {[%emt 0:00:09]} Ke6 {[%emt 0:00:11]} 32. Rg7 {[%emt 0:00:01]} Kf6 {[%emt 0:00:01]} (32... Nxb3 33. Rxg6+ Kf7 34. Rh6 $17) 33. Rh7 {[%emt 0:00:06]} Rf8 {[%emt 0:01:21][%cal Of8f7]} ({Weaker is} 33... Nxb3 34. e5+ Ke6 35. Rxb7 $19) 34. Kf2 {[%emt 0:00:20]} g5 {[%emt 0:00:27]} (34... Nxb3 35. Rxb7 g5 36. f5 $19) 35. f5 {[%emt 0:00:42]} h4 {[%emt 0:00:28]} ({Less strong is} 35... Nxb3 36. Rxh5 Nc5 37. Ke3 $19) 36. Rh6+ {[%emt 0:00:11]} Ke5 {[%emt 0:00:06]} 37. Ke3 {[%emt 0:00:46]} Nc2+ {[%emt 0:01:07]} ({Not} 37... Nxb3 38. Re6#) 38. Kd2 {[%emt 0:00:20]} (38. Kf3 $142) 38... Nd4 {[%emt 0:09:15] Black is clearly winning.} 39. Rg6 {[%emt 0:00:51]} Nxe4+ {[%emt 0:00:00]} 40. Nxe4 {[%emt 0:00:02]} Kxe4 {[%emt 0:00:00]} 41. f6 {[%emt 0:00:26]} Ne6 {[%emt 0:00:00] Weighted Error Value: White=0.44/Black=0.19 (very precise) .  Mistake:       	White=4     	Black=2      Inaccurate:     	White=3     	---        OK:         	White=13    	Black=12     Best:        	---       	Black=6      Strong:       	White=1     	---} 0-1

[Event "XVI Memorial Ezequiel Martin 2024"]
[Site "Mollet"]
[Date "2024.06.09"]
[Round "4.3"]
[White "Ortega Serra, Marc"]
[Black "Hernandez, Cristian Andres"]
[Result "0-1"]
[ECO "E28"]
[WhiteElo "2292"]
[BlackElo "2350"]
[Annotator "RC"]
[PlyCount "138"]
[EventDate "2024.06.01"]
[EventType "swiss"]
[EventCountry "ESP"]
[SourceTitle "playchess.com"]
[Source "ChessBase"]
[SourceQuality "1"]
[TimeControl "900+5"]

1. d4 {[%emt 0:00:03]} Nf6 {[%emt 0:00:02]} 2. c4 {[%emt 0:00:01]} e6 {[%emt 0:00:01]} 3. Nc3 {[%emt 0:00:01]} Bb4 {[%emt 0:00:01]} 4. a3 {[%emt 0:00:01]} Bxc3+ {[%emt 0:00:07]} 5. bxc3 {[%emt 0:00:02]} O-O {[%emt 0:00:08]} 6. e3 {[%emt 0:00:03]} b6 {[%emt 0:00:06]} 7. Ne2 {[%emt 0:15:29]} Nc6 {[%emt 0:00:14]} 8. Ng3 {[%emt 0:00:00]} Ba6 {[%emt 0:00:06]} 9. e4 {[%emt 0:00:00]} Ne8 {[%emt 0:00:01]} 10. d5 {[%emt 0:00:00]} Na5 {[%emt 0:00:12]} 11. c5 {[%emt 0:00:00]} Bxf1 {[%emt 0:00:05]} 12. Kxf1 {[%emt 0:00:25]} Nb7 {[%emt 0:01:47]} 13. cxb6 axb6 14. h4 {[%emt 0:00:10]} Nc5 {[%emt 0:13:25]} 15. Be3 {[%emt 0:00:00]} Qe7 {[%emt 0:00:05]} 16. Qg4 {[%emt 0:00:00]} f5 {[%emt 0:00:05]} 17. exf5 {[%emt 0:00:00]} exf5 {[%emt 0:00:05]} 18. Nxf5 {[%emt 0:00:00]} Qe4 {[%emt 0:00:05]} 19. Qxe4 {[%emt 0:00:00]} Nxe4 {[%emt 0:00:00]} 20. g4 {[%emt 0:00:30]} Nxc3 {[%emt 0:00:00]} 21. d6 {[%emt 0:00:00]} c5 {[%emt 0:00:15]} 22. h5 {[%emt 0:00:10]} Ra4 {[%emt 0:00:00]} 23. f3 {[%emt 0:00:00]} Rf6 {[%emt 0:00:00]} 24. Bg5 {[%emt 0:00:00]} Re6 {[%emt 0:00:00]} 25. Re1 {[%emt 0:00:00]} Rxe1+ {[%emt 0:00:00]} 26. Kxe1 {[%emt 0:00:00]} h6 {[%emt 0:00:25]} 27. Bh4 {[%emt 0:00:25]} Nb5 {[%emt 0:00:00]} 28. Bg3 {[%emt 0:00:05]} Nd4 {[%emt 0:00:00]} 29. Kf2 {[%emt 0:00:00]} Nxf5 {[%emt 0:00:00]} 30. gxf5 {[%emt 0:00:10]} Rd4 {[%emt 0:00:00]} 31. Be5 {[%emt 0:00:05]} Rd5 {[%emt 0:00:00]} 32. f4 {[%emt 0:00:00]} Nxd6 {[%emt 0:00:00]} 33. f6 {[%emt 0:00:10]} gxf6 {[%emt 0:00:00]} 34. Rg1+ {[%emt 0:00:00]} Kf7 {[%emt 0:00:00]} 35. Bxd6 {[%emt 0:00:00]} Rxd6 {[%emt 0:00:00]} 36. Rg6 {[%emt 0:00:00]} Rd4 {[%emt 0:00:00]} 37. Ke3 {[%emt 0:00:00]} Ra4 {[%emt 0:00:00]} 38. Rxh6 {[%emt 0:00:00]} Rxa3+ {[%emt 0:00:00]} 39. Ke4 {[%emt 0:00:00]} c4 {[%emt 0:00:00]} 40. Rh7+ {[%emt 0:00:03]} Ke6 {[%emt 0:00:00]} 41. f5+ {[%emt 0:00:02]} Kd6 {[%emt 0:00:00]} 42. Rf7 {[%emt 0:00:07]} Rh3 {[%emt 0:00:00]} 43. Rxf6+ {[%emt 0:00:02]} Kc5 {[%emt 0:00:00]} 44. h6 {[%emt 0:00:14]} c3 {[%emt 0:00:00]} 45. Rf8 {[%emt 0:00:01]} Rxh6 {[%emt 0:00:00]} 46. f6 {[%emt 0:00:01]} d5+ {[%emt 0:00:16]} 47. Kd3 {[%emt 0:00:01]} Rh3+ {[%emt 0:00:01]} 48. Kc2 {[%emt 0:00:01]} Kd4 {[%emt 0:00:09]} 49. f7 {[%emt 0:00:18]} Rh2+ {[%emt 0:00:06]} 50. Kb3 {[%emt 0:00:01]} Rb2+ {[%emt 0:00:02]} 51. Ka3 {[%emt 0:00:01]} Rf2 {[%emt 0:00:02]} 52. Kb3 {[%emt 0:00:02]} b5 {[%emt 0:00:18]} 53. Rh8 {[%emt 0:00:28]} Rxf7 {[%emt 0:00:02]} 54. Rh4+ {[%emt 0:00:01]} Kc5 {[%emt 0:00:02]} 55. Kxc3 {[%emt 0:00:02]} Rf3+ {[%emt 0:00:01]} 56. Kc2 {[%emt 0:00:02]} b4 {[%emt 0:00:16]} 57. Rh8 {[%emt 0:00:03]} Rc3+ {[%emt 0:00:26]} 58. Kb2 {[%emt 0:00:13]} Kc4 {[%emt 0:00:07]} 59. Rc8+ {[%emt 0:00:15]} Kd3 {[%emt 0:00:02]} 60. Rb8 {[%emt 0:00:01]} b3 {[%emt 0:00:15]} 61. Rh8 {[%emt 0:00:02]} d4 {[%emt 0:00:01]} 62. Rh4 {[%emt 0:00:06]} Kc4 {[%emt 0:00:07]} 63. Rg4 {[%emt 0:00:05]} Rc2+ {[%emt 0:00:02]} 64. Kb1 {[%emt 0:00:01]} Kc3 {[%emt 0:00:12]} 65. Rg3+ {[%emt 0:00:04]} d3 {[%emt 0:00:04]} 66. Rh3 {[%emt 0:00:09]} Re2 {[%emt 0:00:09]} 67. Rh1 {[%emt 0:00:07]} d2 {[%emt 0:00:10]} 68. Rh3+ {[%emt 0:00:11]} Kb4 {[%emt 0:00:02]} 69. Rd3 {[%emt 0:00:07]} Ka3 {[%emt 0:00:14]} 0-1

[Event "XVI Memorial Ezequiel Martin 2024"]
[Site "Mollet"]
[Date "2024.06.09"]
[Round "4.4"]
[White "Lazaro Pujol, Abel"]
[Black "Masague Artero, Guerau"]
[Result "1-0"]
[ECO "B06"]
[WhiteElo "2356"]
[BlackElo "2345"]
[Annotator "RC"]
[PlyCount "45"]
[EventDate "2024.06.01"]
[EventType "swiss"]
[EventCountry "ESP"]
[SourceTitle "playchess.com"]
[Source "ChessBase"]
[SourceQuality "1"]
[TimeControl "900+5"]

1. e4 {[%emt 0:00:03]} g6 {[%emt 0:00:05]} 2. d4 {[%emt 0:00:05]} Bg7 {[%emt 0:00:05]} 3. Nc3 {[%emt 0:00:05]} d6 {[%emt 0:00:05]} 4. Be3 {[%emt 0:00:05]} a6 {[%emt 0:00:00]} 5. h4 {[%emt 0:00:42]} Nf6 {[%emt 0:00:00]} 6. h5 {[%emt 0:00:05]} Nxh5 {[%emt 0:00:00]} 7. Rxh5 {[%emt 0:00:05]} gxh5 {[%emt 0:00:04]} 8. Qxh5 {[%emt 0:00:05]} e6 {[%emt 0:00:51]} 9. e5 {[%emt 0:00:38]} dxe5 {[%emt 0:02:04]} 10. dxe5 {[%emt 0:00:11]} Nc6 {[%emt 0:00:14]} 11. Rd1 {[%emt 0:03:04]} Qe7 {[%emt 0:00:02]} 12. Nf3 {[%emt 0:00:03]} h6 {[%emt 0:12:35]} 13. Qg4 {[%emt 0:03:45]} Qf8 {[%emt 0:00:00]} 14. Ne4 {[%emt 0:01:21]} Nxe5 {[%emt 0:00:00]} 15. Nxe5 {[%emt 0:02:15]} Bxe5 {[%emt 0:00:00]} 16. Bc5 {[%emt 0:00:19]} Bd6 {[%emt 0:00:02]} 17. Rxd6 {[%emt 0:02:57]} cxd6 {[%emt 0:00:14]} 18. Nxd6+ {[%emt 0:00:02]} Kd7 {[%emt 0:00:05]} 19. Qa4+ {[%emt 0:00:05]} Kc7 {[%emt 0:00:05]} 20. Qc4 {[%emt 0:00:05]} Kb8 {[%emt 0:00:05]} 21. Nb5 {[%emt 0:00:05]} axb5 {[%emt 0:00:05]} 22. Qf4+ {[%emt 0:00:05]} e5 {[%emt 0:00:07]} 23. Qxe5+ {[%emt 0:00:27]} 1-0